Cogmind - Beta 14 *** ADVENTURER MODE // 2024.08.11 @ 19:46:03 Player: Ms. V3-11A Result: Self-destructed Performance ------------- Evolutions (1) 500 Regions Visited (3) 600 Robots Destroyed (61) 305 Value Destroyed (1355) 1355 Prototype IDs (6) 120 Alien Tech Used (0) 0 Bonus (0) 0 TOTAL SCORE: 2880 Bonus ------- None Cogmind --------- Core Integrity 50/400 Matter 147/300 Energy 265/265 System Corruption 1% Temperature Cool (0) Movement Core (350) Ox6 Location -9/Materials Parts ------- > --- POWER (1) -------- Improved Ion Engine > --- PROPULSION (3) --- (None) > --- UTILITY (3) ------ Medium Storage Unit Seismic Detector ECM Suite > --- WEAPON (2) ------- (None) > --- INVENTORY (10) --- Improved Heat Sink Medium Storage Unit Weight Redist. System Improved Sensor Array Signal Interpreter Rocket Launcher Hammer Peak State ------------ > --- POWER ------------ Light Ion Engine > --- PROPULSION ------- Hover Unit Hover Unit > --- UTILITY ---------- Medium Storage Unit Experimental Sensor Array > --- WEAPON ----------- Medium Laser Small Laser > --- INVENTORY -------- Hover Unit Hover Unit Hover Unit Improved Heat Sink Medium Storage Unit Signal Interpreter ECM Suite Propulsion Shielding Utility Shielding Rocket Launcher [Rating: 16] Favorites ----------- Power Light Ion Engine Engine Light Ion Engine Propulsion Hover Unit Leg Aluminum Leg Hover Unit Hover Unit Utility Medium Storage Unit Device Improved Heat Sink Storage Medium Storage Unit Processor Signal Interpreter Protection Backup Plating I Weapon Medium Laser Energy Gun Medium Laser Ballistic Gun Improved Assault Rifle Launcher Mini Grenade Launcher Impact Weapon Hammer Build | -11 -10 -10 -9 ------- Run | Yrd Mat Min Mat Slots Evolved 2 | . . . 2 Power . | . . . . Propulsion 1 | . . . 1 Utility 1 | . . . 1 Weapon . | . . . . Parts Attached 46 | . 9 10 27 Power 6 | . 1 3 2 Engine 6 | . 1 3 2 Core . | . . . . Reactor . | . . . . Propulsion 12 | . 3 3 6 Treads . | . . . . Leg . | . . . . Wheel . | . . . . Hover 12 | . 3 3 6 Flight . | . . . . Utility 14 | . 3 4 7 Device 10 | . 1 4 5 Storage 2 | . 2 . . Processor 2 | . . . 2 Hackware . | . . . . Protection . | . . . . Artifact . | . . . . Weapon 14 | . 2 . 12 Energy Gun 4 | . 2 . 2 Energy Cannon . | . . . . Ballistic Gun 8 | . . . 8 Ballistic Cannon . | . . . . Launcher 1 | . . . 1 Special Weapon . | . . . . Impact Weapon 1 | . . . 1 Slashing Weapon . | . . . . Piercing Weapon . | . . . . Special Melee Weapon . | . . . . Unidentified Prototypes 1 | . . 1 . Parts Lost 21 | . . 6 15 Power 2 | . . 1 1 Propulsion 10 | . . 2 8 Utility 3 | . . 1 2 Weapon 6 | . . 2 4 Highest Loss Streak 4 | . . 3 4 To Critical Strikes . | . . . . Average Slot Usage (%) 88 | . 92 98 79 Engine 12 | . 14 13 10 Leg 1 | . 5 . . Hover 23 | . 22 27 20 Device 10 | . 7 13 9 Storage 12 | . 14 14 11 Processor 4 | . . . 10 Energy Gun 18 | . 27 27 4 Ballistic Gun 4 | . . . 11 Peak Build Rating 16 | . 10 16 16 Average Rating 9 | . 8 9 11 On Entrance 6 | 6 6 10 5 Naked Turns . | . . . . Heaviest Build 31 | 11 31 17 26 Greatest Support 20 | 20 20 12 18 Greatest Overweight (x) 7 | . 2 1 7 Average Overweight (x) 1 | . . 1 1 Largest Inventory Capacity 15 | . 15 10 10 Average Capacity 10 | . 10 10 10 Most Carried 13 | . 13 10 10 Average Carried 9 | . 9 9 8 Final Capacity 10 | 8 10 10 10 Final Carried 10 | 6 10 8 7 Class Distribution -------------------- 100% | Mutant Dominant Class ---------------- Mutant | -10/Materials Mutant | -10/Mines Mutant | -9/Materials Resources | -11 -10 -10 -9 ----------- Run | Yrd Mat Min Mat Matter Collected 834 | 200 90 70 474 Remotely . | . . . . Salvage Created 1859 | . 429 288 1142 Parts 129 | . 28 34 67 Haulers Intercepted 3 | . 1 . 2 Recyclers Shooed 1 | . . . 1 Parts Field Recycled . | . . . . Retrieved Matter . | . . . . Parts Self-Destructed . | . . . . Prevented . | . . . . Kills | -11 -10 -10 -9 ------- Run | Yrd Mat Min Mat Combat Hostiles Destroyed 48 | . 8 14 26 Guns 46 | . 8 14 24 AOE 2 | . . . 2 Classes Destroyed 9 | . 5 2 2 Builder 1 | . . 1 . Tunneler 2 | . . 1 1 Hauler 3 | . 1 . 2 Recycler 1 | . 1 . . Watcher 6 | . 2 . 4 Swarmer 22 | . 3 12 7 Grunt 20 | . 5 2 13 Duelist 1 | . . . 1 Sentry 5 | . . . 5 Best Kill Streak 5 | . 2 3 5 Combat Bots Only 5 | . 2 3 5 Max Kills in Single Turn 2 | . 1 2 2 Gunslinging 1 | . . 1 1 Exploded 2 | . . . 2 Melee . | . . . . Uniques/NPCs Destroyed . | . . . . Combat | -11 -10 -10 -9 -------- Run | Yrd Mat Min Mat Hostile Shots Fired 302 | . 20 87 195 Missed 89 | . 5 23 61 Damage Taken 1878 | . 110 460 1308 Core 481 | . 21 110 350 Absorbed by Shields . | . . . . Ignored by Resistances 568 | . 35 156 377 Regen/Repaired (Parts) 90 | . 37 . 53 Core Remaining (%) 73 | 100 . 47 . Volleys Fired 163 | . 20 35 108 Largest 2 | . 2 2 2 Hottest 90 | . 90 90 79 Shots Fired 280 | . 40 67 173 Gun 278 | . 40 67 171 Cannon . | . . . . Launcher 2 | . . . 2 Special . | . . . . Kinetic 119 | . . . 119 Thermal 159 | . 40 67 52 Explosive 2 | . . . 2 Electromagnetic . | . . . . Robot Hit Streak 21 | . 12 16 21 Robot Miss Streak 4 | . 2 4 2 Penetration Max . | . . . . Secondary Targets 8 | . . 4 4 Max Gunslinging Chain 1 | . . 1 1 Shots Hit Robots 208 | . 32 44 132 Core Hits 86 | . 21 18 47 Critical Kills . | . . . . Critical Parts Destroyed . | . . . . Critical Strikes 9 | . 3 2 4 Burn 9 | . 3 2 4 Melee Attacks 2 | . . . 2 Impact 2 | . . . 2 Slashing . | . . . . Piercing . | . . . . Sneak Attacks . | . . . . Combat Hostiles . | . . . . Follow-up Attacks . | . . . . Damage Inflicted 3028 | . 386 524 2118 Guns 2863 | . 386 524 1953 Cannons . | . . . . Explosions 165 | . . . 165 Melee . | . . . . Ramming . | . . . . Kinetic 1404 | . . . 1404 Thermal 1459 | . 386 524 549 Explosive 165 | . . . 165 Electromagnetic . | . . . . Impact . | . . . . Slashing . | . . . . Piercing . | . . . . Highest Corruption 1 | . . . 1 Average Corruption 1 | . . . 1 Corruption Purged . | . . . . Corruption Blocked . | . . . . Effects 4 | . . . 4 Message Errors 2 | . . . 2 Matter Fused 2 | . . . 2 Overload Shots . | . . . . Overflow Damage 2 | . . . 2 Projectiles . | . . . . Explosions 2 | . . . 2 Melee . | . . . . Knockbacks . | . . . . Impact . | . . . . Kinetic . | . . . . Secondary . | . . . . Self-Inflicted Damage 19 | . . . 19 Shots 2 | . . . 2 Rammed . | . . . . Targets Rammed . | . . . . Kicked . | . . . . Crushed . | . . . . Highest Temperature 292 | . 144 292 186 Average Temperature 56 | . 52 98 43 Received Heat Transfer 894 | . 51 180 663 Effects 3 | . . 3 . Energy Bleed 1 | . . 1 . Interference 2 | . . 2 . Siege Activations . | . . . . Robots Corrupted . | . . . . Combat Hostiles . | . . . . Parts Fried . | . . . . Impact Corruptions . | . . . . Robots Melted . | . . . . Combat Hostiles . | . . . . Parts Melted 6 | . 1 3 2 Heat Transferred 4526 | . 1275 1549 1702 Parts Sabotaged . | . . . . Parts Stolen . | . . . . Parts Stripped . | . . . . Power Chain Reactions . | . . . . Alert | -11 -10 -10 -9 ------- Run | Yrd Mat Min Mat Peak Influence 279 | . 237 241 279 Initial 1 | . . 1 . Average 69 | . 39 54 104 Maximum Alert Level 1 | . 1 1 1 Low Security (%) 93 | . 94 99 87 Level 1 6 | . 5 . 12 Level 2 . | . . . . Level 3 . | . . . . Level 4 . | . . . . Level 5 . | . . . . High Security . | . . . . Max Security . | . . . . Squads Dispatched 6 | . 1 . 5 Investigation 5 | . 1 . 4 Extermination . | . . . . Reinforcement 1 | . . . 1 Assault . | . . . . Garrison . | . . . . Intercept . | . . . . Searches Triggered . | . . . . Construction Impeded . | . . . . Haulers Reinforced . | . . . . Active Scanning Responses . | . . . . Cargo Convoy Interrupts . | . . . . Stealth | -11 -10 -10 -9 --------- Run | Yrd Mat Min Mat Distress Signals 3 | . . . 3 Communications Jammed . | . . . . Distress Signals . | . . . . Times Spotted 84 | . 18 17 49 Peak Tracking Total 7 | . 4 3 7 Tactical Retreats 12 | . 3 1 8 Traps | -11 -10 -10 -9 ------- Run | Yrd Mat Min Mat Traps Triggered 5 | . 1 . 4 Indirectly . | . . . . Trap Hack Attempts . | . . . . Triggered . | . . . . Disarmed . | . . . . Reprogrammed . | . . . . Reused . | . . . . Traps Extracted . | . . . . Installed . | . . . . Triggered . | . . . . Machines | -11 -10 -10 -9 ---------- Run | Yrd Mat Min Mat Machines Disabled 3 | . . . 3 Max in Single Turn 1 | . . . 1 Machines Repaired . | . . . . Machines Dismantled . | . . . . Machines Sabotaged . | . . . . Overloaded Fab Kills . | . . . . Hacking | -11 -10 -10 -9 --------- Run | Yrd Mat Min Mat Machines Accessed 17 | . 9 . 8 Terminals 14 | . 8 . 6 Fabricators . | . . . . Repair Stations 3 | . 1 . 2 Recycling Units . | . . . . Scanalyzers . | . . . . Garrison Access . | . . . . Total Hacks 58 | . 30 . 28 Successful 32 | . 19 . 13 Failed 26 | . 11 . 15 Catastrophic 4 | . 1 . 3 Database Lockouts . | . . . . Manual 26 | . 12 . 14 Terminals 43 | . 25 . 18 Fabricators . | . . . . Repair Stations 15 | . 5 . 10 Recycling Units . | . . . . Scanalyzers . | . . . . Garrison Access . | . . . . Terminal Hacks 14 | . 11 . 3 Part Schematic 1 | . . . 1 Robot Analysis 1 | . 1 . . Prototype ID Bank 3 | . 3 . . Branch Access Points 2 | . 1 . 1 Terminal Index 2 | . 1 . 1 Repair Station Index 1 | . 1 . . Unreport Threat 2 | . 2 . . Registered Components 1 | . 1 . . Zone Layout 1 | . 1 . . Fabricator Hacks . | . . . . Repair Station Hacks 12 | . 5 . 7 Scan Component 5 | . 2 . 3 Repair 4 | . 2 . 2 Refit 3 | . 1 . 2 Recycling Unit Hacks . | . . . . Scanalyzer . | . . . . Garrison Access Hacks . | . . . . Unauthorized Hacks 6 | . 3 . 3 Terminals 6 | . 3 . 3 Botnet 6 | . 3 . 3 Fabricators . | . . . . Repair Stations . | . . . . Recycling Units . | . . . . Scanalyzers . | . . . . Garrison Access . | . . . . Data Cores Recovered . | . . . . Used . | . . . . Hacking Detections 16 | . 8 . 8 Full Trace Events 3 | . . . 3 Feedback Events . | . . . . Feedback Blocked . | . . . . Robot Schematics Acquired . | . . . . Robots Built . | . . . . Authchips . | . . . . Time . | . . . . Total Robot Build Rating . | . . . . Part Schematics Acquired 1 | . . . 1 Parts Built . | . . . . Authchips . | . . . . Time . | . . . . Total Part Build Rating . | . . . . Parts Repaired 4 | . 2 . 2 Time 104 | . 52 . 52 Parts Recycled . | . . . . Recycled Matter . | . . . . Retrieved Matter . | . . . . Retrieved Components . | . . . . Parts Scanalyzed . | . . . . Part Schematics Acquired . | . . . . Parts Damaged . | . . . . Bothacking | -11 -10 -10 -9 ------------ Run | Yrd Mat Min Mat Used RIF Installer . | . . . . Robots Hacked . | . . . . Non-combat . | . . . . Combat . | . . . . Robot Hacks Applied . | . . . . Relay Couplers Released . | . . . . Fabnet Peak Effective % . | . . . . Robots Rewired . | . . . . Allies Hacked . | . . . . Hacks Repelled . | . . . . Allies | -11 -10 -10 -9 -------- Run | Yrd Mat Min Mat Total Allies . | . . . . Largest Group . | . . . . Highest-Rated Group . | . . . . Highest-Rated Ally . | . . . . Total Orders . | . . . . Ally Attacks . | . . . . Total Damage . | . . . . Kills . | . . . . Allies Corrupted . | . . . . Allies Melted . | . . . . Intel | -11 -10 -10 -9 ------- Run | Yrd Mat Min Mat Robot Analysis Total 1 | . 1 . . Derelict Logs Recovered 2 | . . 2 . Drone Launches . | . . . . Drone Recoveries . | . . . . Exploration | -11 -10 -10 -9 ------------- Run | Yrd Mat Min Mat Turns Passed 4888 | . 1538 1340 2010 Spaces Moved 2542 | 1 938 657 946 Core 5 | . . . 5 Treads . | . . . . Legs 178 | 1 177 . . Wheels . | . . . . Hover 2359 | . 761 657 941 Flight . | . . . . Fastest Speed 76 | 120 116 116 76 Average Speed 136 | 120 146 116 142 Slowest Speed 400 | 120 236 116 400 Overloaded Moves . | . . . . Propulsion Burnouts . | . . . . Robots Hopped . | . . . . Cave-ins Triggered 1 | . . . 1 Exploration Rate (%) 60 | 1 89 97 55 Regions Visited 3 Branch Regions 1 Pre-discovered Areas 3 | . . 3 . Known Exits Taken 1 | . 1 . . Unknown Exits Taken 2 | 1 . 1 . Scrap Searched 1 | . . 1 . Spaces Dug 1 | . . . 1 Terrain Destroyed 11 | . . . 11 Melee 1 | . . . 1 Projectile . | . . . . AOE 10 | . . . 10 Terrain Rammed . | . . . . Walls Destroyed . | . . . . Machines Disabled . | . . . . Actions | -11 -10 -10 -9 --------- Run | Yrd Mat Min Mat Total 3677 | . 1072 1169 1436 Wait 861 | . 71 459 331 Move 2539 | . 937 656 946 Hop . | . . . . Pick Up 29 | . 17 3 9 Fast Attach 23 | . 4 3 16 Attach 11 | . 1 3 7 Detach 4 | . 2 . 2 Swap 12 | . 4 4 4 Drop 33 | . 16 6 11 Fire 163 | . 20 35 108 Melee 2 | . . . 2 Ram . | . . . . Kick . | . . . . Crush . | . . . . Escape Stasis . | . . . . Rewire . | . . . . Trap . | . . . . Miscellaneous . | . . . . Route ------- -11/Scrapyard -10/Materials (discovered 4 exits: *Mat x2 / *Min / [*Sub]) -10/Mines (discovered 2 exits: *Mat x2) -9/Materials (discovered 2 exits: *Mat / Min) History --------- Turn | Location | Event 1 | -11/Scrapyard | Discovered new exit (range 0) 1 | -11/Scrapyard | Entered Materials 332 | -10/Materials | Build established: Mutant 450 | -10/Materials | Discovered new exit (range 8) 701 | -10/Materials | Derelicts attacked the area 1083 | -10/Materials | Discovered new exit (range 15) 1220 | -10/Materials | Discovered new exit (range 16) 1289 | -10/Materials | Discovered new exit (range 5) 1315 | -10/Materials | Identified exit to Mines 1423 | -10/Materials | Repaired Hover Unit 1450 | -10/Materials | Repaired Med. Laser 1539 | -10/Materials | Entered Mines 1685 | -10/Mines | Learned location of Zion (-7) 1691 | -10/Mines | Received a Rocket Launcher from a helpful Derelict 1724 | -10/Mines | Found a damaged Exp. Sensor Array with a note attached 1726 | -10/Mines | Found Prototype Device 1727 | -10/Mines | Identified Exp. Sensor Array 2081 | -10/Mines | Learned location of Storage (-8) 2224 | -10/Mines | Discovered new exit (range 3) 2255 | -10/Mines | Learned location of Mines (-9) 2274 | -10/Mines | Excavation squad dispatched 2274 | -10/Mines | A large section of the Mines collapsed 2866 | -10/Mines | Discovered new exit (range 3) 2879 | -10/Mines | Entered Materials 2879 | -9/Materials | Evolved 2 slots: Propulsion x1, Utility x1 2908 | -9/Materials | Lost 3 parts (1n2w) 3938 | -9/Materials | Repaired Hover Unit 3982 | -9/Materials | Discovered new exit (range 7) 3991 | -9/Materials | Identified exit to Materials 4074 | -9/Materials | Identified exit to Mines 4293 | -9/Materials | Core integrity fell below 50% 4300 | -9/Materials | Crushed by falling debris 4331 | -9/Materials | Lost 4 parts (1p1n1u1w) 4720 | -9/Materials | Repaired Hover Unit 4858 | -9/Materials | Core integrity fell below 20% 4889 | -9/Materials | Self-destructed Last Messages --------------- Hover Unit Rating: 1 Time: 26 >>Repair Repairing Hover Unit... ETC: 26 04694_ ALERT: Suspicious activity at Repair Station M002. Dispatching Investigation squad. 04720_ Repair station completes Hover Unit repairs. 04720_ Acquired Hover Unit. 04726_ Imp. Terrain Scanner destroyed. 04765_ Acquired Hammer. 04774_ Backup Propulsion I destroyed. 04779_ U-05 Engineer builds a Wall. 04816_ Discarded Terrain Scan Processor. 04861_ Hover Unit destroyed. 04867_ Autogun destroyed. 04876_ D1#MP YI&8T,FSW